[Event "Charlotte Open 2024"]
[Site "Charlotte"]
[Date "2024.01.14"]
[Round "2.6"]
[White "Prabhu, Naveen"]
[Black "Chasin, Nico"]
[Result "0-1"]
[ECO "B62"]
[WhiteElo "2103"]
[BlackElo "2437"]
[Annotator "RC"]
[PlyCount "82"]
[EventDate "2024.01.05"]
[EventType "swiss"]
[EventCountry "USA"]
[SourceTitle "playchess.com"]
[Source "ChessBase"]
[SourceQuality "1"]
[TimeControl "6600+10"]

1. e4 {[%emt 0:00:47]} c5 {[%emt 0:26:31]} 2. Nf3 {[%emt 0:02:19]} d6 {[%emt 0:01:04]} 3. d4 {[%emt 0:00:13]} cxd4 {[%emt 0:00:05]} 4. Nxd4 {[%emt 0:00:07]} Nf6 {[%emt 0:00:06]} 5. Nc3 {[%emt 0:00:07]} Nc6 {[%emt 0:00:04]} 6. Bb5 {[%emt 0:00:35]} Bd7 {[%emt 0:00:39]} 7. Bg5 {[%emt 0:00:28]} e6 {[%emt 0:01:29]} 8. Qd3 {[%emt 0:02:14]} Qb6 {[%emt 0:04:32]} 9. Bxc6 {[%emt 0:12:05]} bxc6 {[%emt 0:00:23]} 10. O-O {[%emt 0:11:23]} Ng4 {[%emt 0:08:58]} 11. Nb3 {[%emt 0:04:03]} f6 {[%emt 0:03:16]} 12. Bf4 {[%emt 0:03:49]} Ne5 {[%emt 0:00:29]} 13. Qg3 {[%emt 0:04:05]} Nc4 {[%emt 0:00:55]} 14. Rae1 {[%emt 0:12:52]} a5 {[%emt 0:05:10]} 15. a4 {[%emt 0:00:43]} e5 {[%emt 0:00:12]} 16. Bc1 {[%emt 0:00:05]} Be6 {[%emt 0:00:04]} 17. Kh1 {[%emt 0:01:14]} g5 {[%emt 0:07:35]} 18. Qd3 {[%emt 0:00:55]} Qa6 {[%emt 0:00:58]} 19. Rd1 {[%emt 0:07:21]} h5 {[%emt 0:01:19]} 20. f3 {[%emt 0:04:17]} Be7 {[%emt 0:02:08]} 21. Rfe1 {[%emt 0:06:19]} O-O {[%emt 0:47:43]} 22. Qe2 {[%emt 0:06:04]} Qb7 {[%emt 0:00:00]} 23. Qf2 {[%emt 0:06:54]} Bd8 {[%emt 0:00:00]} 24. Rd3 {[%emt 0:04:49]} Bb6 {[%emt 0:00:00]} 25. Qe2 {[%emt 0:00:10]} Bc7 {[%emt 0:00:00]} 26. Red1 {[%emt 0:01:00]} Rab8 {[%emt 0:00:00]} 27. Qf2 {[%emt 0:01:53]} Qc8 {[%emt 0:01:00]} 28. Qg3 {[%emt 0:02:55]} Qe8 {[%emt 0:00:00]} 29. Qe1 {[%emt 0:01:58]} Qg6 {[%emt 0:00:00]} 30. Ne2 {[%emt 0:01:13]} f5 {[%emt 0:00:00]} 31. Ng3 {[%emt 0:00:40]} f4 {[%emt 0:00:00]} 32. Ne2 {[%emt 0:00:55]} g4 {[%emt 0:00:00]} 33. Ng1 {[%emt 0:00:11]} Rf7 {[%emt 0:00:00]} 34. Qf1 {[%emt 0:00:41]} Kh7 {[%emt 0:00:00]} 35. Rc3 {[%emt 0:00:33]} Rb4 {[%emt 0:00:00]} 36. Qf2 {[%emt 0:03:30]} Bb6 {[%emt 0:00:00]} 37. Qe2 {[%emt 0:00:12]} Rg7 {[%emt 0:00:00]} 38. Nd2 {[%emt 0:01:47]} Ne3 {[%emt 0:00:00]} 39. Rxe3 {[%emt 0:00:06]} Bxe3 {[%emt 0:00:00]} 40. b3 {[%emt 0:00:45]} Rb8 {[%emt 0:00:00]} 41. Ba3 {[%emt 0:01:26]} c5 {[%emt 0:00:00]} 0-1

[Event "Charlotte Open 2024"]
[Site "Charlotte"]
[Date "2024.01.14"]
[Round "2.7"]
[White "Foisor, Sabina-Francesca"]
[Black "Kraai, Jesse"]
[Result "1/2-1/2"]
[ECO "D38"]
[WhiteElo "2200"]
[BlackElo "2375"]
[Annotator "RC"]
[PlyCount "100"]
[EventDate "2024.01.05"]
[EventType "swiss"]
[EventCountry "USA"]
[SourceTitle "playchess.com"]
[Source "ChessBase"]
[SourceQuality "1"]
[TimeControl "6600+10"]

1. d4 {[%emt 0:07:37]} Nf6 {[%emt 0:00:09]} 2. c4 {[%emt 0:00:54]} e6 {[%emt 0:00:10]} 3. Nf3 {[%emt 0:00:05]} d5 {[%emt 0:00:09]} 4. Nc3 {[%emt 0:01:55]} Bb4 {[%emt 0:00:10]} 5. Qa4+ {[%emt 0:02:03]} Nc6 {[%emt 0:00:09]} 6. Bg5 {[%emt 0:02:49]} O-O {[%emt 0:03:38]} 7. e3 {[%emt 0:01:04]} h6 {[%emt 0:00:16]} 8. Bxf6 {[%emt 0:04:19]} Qxf6 {[%emt 0:00:08]} 9. a3 {[%emt 0:00:04]} Bxc3+ {[%emt 0:03:18]} 10. bxc3 {[%emt 0:00:02]} Qg6 {[%emt 0:01:41]} 11. h4 {[%emt 0:06:31]} dxc4 {[%emt 0:05:55]} 12. h5 {[%emt 0:07:20]} Qf5 {[%emt 0:04:12]} 13. Qxc4 {[%emt 0:02:50]} Rd8 {[%emt 0:16:44]} 14. Bd3 {[%emt 0:05:54]} Qa5 {[%emt 0:00:41]} 15. Nd2 {[%emt 0:07:03]} e5 {[%emt 0:04:04]} 16. Nb3 {[%emt 0:06:47]} Qb6 {[%emt 0:00:42]} 17. Nc5 {[%emt 0:07:44]} Na5 {[%emt 0:09:51]} 18. Qa4 {[%emt 0:04:49]} c6 {[%emt 0:00:59]} 19. Rd1 {[%emt 0:09:53]} exd4 {[%emt 0:09:51]} 20. cxd4 {[%emt 0:00:59]} Qc7 {[%emt 0:00:06]} 21. Bb1 {[%emt 0:03:36]} b6 {[%emt 0:00:45]} 22. Ne4 {[%emt 0:00:04]} Be6 {[%emt 0:03:44]} 23. Nd2 {[%emt 0:00:27]} c5 {[%emt 0:12:32]} 24. Qc2 {[%emt 0:03:55]} Kf8 {[%emt 0:01:10]} 25. O-O {[%emt 0:11:25]} Rd5 {[%emt 0:02:28]} 26. f4 {[%emt 0:01:14]} Bf5 {[%emt 0:05:43]} 27. e4 {[%emt 0:04:17]} Bh7 {[%emt 0:01:59]} 28. Nb3 {[%emt 0:04:21]} Nxb3 {[%emt 0:01:49]} 29. Qxb3 {[%emt 0:00:03]} Rxd4 {[%emt 0:00:09]} 30. Rxd4 {[%emt 0:00:12]} cxd4 {[%emt 0:00:06]} 31. Qb4+ {[%emt 0:00:23]} Qe7 {[%emt 0:01:00]} 32. Rc1 {[%emt 0:01:38]} Qxb4 {[%emt 0:04:50]} 33. axb4 {[%emt 0:00:00]} a5 {[%emt 0:00:05]} 34. Rc4 {[%emt 0:00:40]} a4 {[%emt 0:03:14]} 35. Rxd4 {[%emt 0:00:21]} f6 {[%emt 0:00:05]} 36. Ba2 {[%emt 0:00:45]} Bg8 {[%emt 0:00:36]} 37. Bxg8 {[%emt 0:00:25]} Kxg8 {[%emt 0:00:13]} 38. b5 {[%emt 0:00:00]} a3 {[%emt 0:00:17]} 39. Rd1 {[%emt 0:00:02]} Ra4 {[%emt 0:00:49]} 40. Ra1 {[%emt 0:00:16]} Rxe4 {[%emt 0:00:47]} 41. Rxa3 {[%emt 0:00:03]} Rb4 {[%emt 0:00:05]} 42. Ra8+ {[%emt 0:00:18]} Kh7 {[%emt 0:00:09]} 43. Rb8 {[%emt 0:00:53]} Rxb5 {[%emt 0:00:05]} 44. Kf2 {[%emt 0:00:05]} Rb1 {[%emt 0:02:20]} 45. f5 {[%emt 0:00:21]} Rb5 {[%emt 0:00:05]} 46. g4 {[%emt 0:00:01]} Rb1 {[%emt 0:00:08]} 47. Kg2 {[%emt 0:00:10]} b5 {[%emt 0:00:20]} 48. Kh2 {[%emt 0:00:01]} b4 {[%emt 0:00:02]} 49. Kg2 {[%emt 0:00:01]} b3 {[%emt 0:00:17]} 50. Kh2 {[%emt 0:00:00]} Rb2+ {[%emt 0:01:41]} 1/2-1/2

[Event "Charlotte Open 2024"]
[Site "Charlotte"]
[Date "2024.01.14"]
[Round "2.8"]
[White "Cordova, Emilio"]
[Black "Belenkaya, Dina"]
[Result "1-0"]
[ECO "A14"]
[WhiteElo "2563"]
[BlackElo "2202"]
[Annotator "RC"]
[PlyCount "123"]
[EventDate "2024.01.05"]
[EventType "swiss"]
[EventCountry "USA"]
[SourceTitle "playchess.com"]
[Source "ChessBase"]
[SourceQuality "1"]
[TimeControl "6600+10"]

1. Nf3 {[%emt 0:06:17]} Nf6 {[%emt 0:01:26]} 2. c4 {[%emt 0:02:50]} e6 {[%emt 0:08:31]} 3. g3 {[%emt 0:03:20]} d5 {[%emt 0:06:15]} 4. Bg2 {[%emt 0:00:48]} Be7 {[%emt 0:01:20]} 5. O-O {[%emt 0:00:17]} O-O {[%emt 0:00:19]} 6. Ne5 {[%emt 0:00:41]} c5 {[%emt 0:03:49]} 7. cxd5 {[%emt 0:01:11]} exd5 {[%emt 0:07:13]} 8. e3 {[%emt 0:00:28]} Nc6 {[%emt 0:01:49]} 9. d4 {[%emt 0:02:16]} Be6 {[%emt 0:09:12]} 10. Nc3 {[%emt 0:00:27]} Qc8 {[%emt 0:05:48]} 11. Nxc6 {[%emt 0:01:10]} bxc6 {[%emt 0:00:46]} 12. dxc5 {[%emt 0:01:12]} Bxc5 {[%emt 0:00:40]} 13. Na4 {[%emt 0:03:51]} Be7 {[%emt 0:00:29]} 14. b3 {[%emt 0:03:02]} Bh3 {[%emt 0:05:44]} 15. Bb2 {[%emt 0:01:54]} Ne4 {[%emt 0:04:01]} 16. Rc1 {[%emt 0:01:37]} Bxg2 {[%emt 0:01:50]} 17. Kxg2 {[%emt 0:00:06]} Qe6 {[%emt 0:00:49]} 18. h3 {[%emt 0:40:54]} Rac8 {[%emt 0:19:40]} 19. Qg4 {[%emt 0:02:17]} Qh6 {[%emt 0:14:19]} 20. Qd7 {[%emt 0:04:34]} Qe6 {[%emt 0:04:28]} 21. Qxe6 {[%emt 0:00:28]} fxe6 {[%emt 0:00:01]} 22. Rc2 {[%emt 0:05:46]} Bd6 {[%emt 0:02:17]} 23. g4 {[%emt 0:02:28]} h5 {[%emt 0:07:18]} 24. f3 {[%emt 0:00:53]} hxg4 {[%emt 0:00:20]} 25. hxg4 {[%emt 0:00:33]} Ng5 {[%emt 0:00:06]} 26. Nc5 {[%emt 0:09:20]} e5 {[%emt 0:02:48]} 27. Nb7 {[%emt 0:01:23]} Bb8 {[%emt 0:00:18]} 28. Ba3 {[%emt 0:00:15]} Rf6 {[%emt 0:02:01]} 29. Be7 {[%emt 0:01:15]} Rf7 {[%emt 0:00:01]} 30. Bxg5 {[%emt 0:00:38]} Rxb7 {[%emt 0:00:01]} 31. Rfc1 {[%emt 0:00:50]} Rbc7 {[%emt 0:00:22]} 32. Rc5 {[%emt 0:00:56]} Kf7 {[%emt 0:00:14]} 33. Bh4 {[%emt 0:00:51]} Ke6 {[%emt 0:00:07]} 34. Bg3 {[%emt 0:00:24]} a6 {[%emt 0:00:19]} 35. e4 {[%emt 0:00:14]} Kd6 {[%emt 0:00:36]} 36. Ra5 {[%emt 0:00:47]} Ba7 {[%emt 0:00:33]} 37. exd5 {[%emt 0:00:47]} Bd4 {[%emt 0:00:10]} 38. Rd1 {[%emt 0:06:55]} c5 {[%emt 0:00:04]} 39. Rxa6+ {[%emt 0:00:02]} Kxd5 {[%emt 0:00:02]} 40. Rg6 {[%emt 0:00:10]} Ra8 {[%emt 0:00:10]} 41. Rd2 {[%emt 0:02:53]} Rca7 {[%emt 0:00:06]} 42. a4 {[%emt 0:00:00]} Rb8 {[%emt 0:00:06]} 43. Rg5 {[%emt 0:00:00]} Rxb3 {[%emt 0:00:07]} 44. Rxe5+ {[%emt 0:00:00]} Kc4 {[%emt 0:00:01]} 45. Re4 {[%emt 0:00:00]} Rxa4 {[%emt 0:00:21]} 46. Be5 {[%emt 0:00:00]} Rd3 {[%emt 0:00:15]} 47. Rde2 {[%emt 0:00:10]} Kb3 {[%emt 0:00:17]} 48. Bd6 {[%emt 0:00:13]} c4 {[%emt 0:00:09]} 49. Re7 {[%emt 0:00:05]} Ra7 {[%emt 0:00:04]} 50. Re8 {[%emt 0:00:24]} Rb7 {[%emt 0:00:12]} 51. Ra8 {[%emt 0:00:06]} c3 {[%emt 0:00:13]} 52. Ra3+ {[%emt 0:00:17]} Kc4 {[%emt 0:00:01]} 53. Re8 {[%emt 0:00:09]} Rd2+ {[%emt 0:00:22]} 54. Kh3 {[%emt 0:00:07]} c2 {[%emt 0:00:11]} 55. Rc8+ {[%emt 0:00:04]} Kd5 {[%emt 0:00:02]} 56. Bf4 {[%emt 0:00:02]} Re2 {[%emt 0:00:29]} 57. Rd8+ {[%emt 0:00:24]} Kc4 {[%emt 0:00:01]} 58. Ra4+ {[%emt 0:00:02]} Rb4 {[%emt 0:00:22]} 59. Rxb4+ {[%emt 0:00:10]} Kxb4 {[%emt 0:00:01]} 60. Rxd4+ {[%emt 0:00:01]} Kc3 {[%emt 0:00:05]} 61. Rd7 {[%emt 0:00:03]} g6 {[%emt 0:00:14]} 62. Rd6 {[%emt 0:00:21]} 1-0

[Event "Charlotte Open 2024"]
[Site "Charlotte"]
[Date "2024.01.14"]
[Round "2.9"]
[White "Wang, Aaron Ziwen"]
[Black "Botez, Andrea"]
[Result "1/2-1/2"]
[ECO "E61"]
[WhiteElo "1669"]
[BlackElo "1709"]
[Annotator "NA RC COMBH"]
[PlyCount "96"]
[EventDate "2024.01.05"]
[EventType "swiss"]
[EventCountry "USA"]
[SourceTitle "playchess.com"]
[Source "ChessBase"]
[SourceQuality "1"]
[TimeControl "6600+10"]

1. d4 {[%emt 0:10:10]} Nf6 {[%emt 0:16:46]} 2. c4 {[%emt 0:00:00]} g6 {[%emt 0:00:06]} 3. Nc3 {[%emt 0:00:00]} Bg7 {[%emt 0:00:11]} 4. Nf3 {[%emt 0:00:01]} d6 {[%emt 0:00:06]} 5. Bg5 {[%emt 0:00:10]} h6 {[%emt 0:00:56]} 6. Bh4 {[%emt 0:00:14]} g5 {[%emt 0:01:35]} 7. Bg3 {[%emt 0:00:13]} Nh5 {[%emt 0:00:06]} 8. e3 {[%emt 0:01:46]} Nxg3 {[%emt 0:09:34]} 9. hxg3 {[%emt 0:00:14]} c5 {[%emt 0:06:03]} 10. Qd2 {[%emt 0:06:56]} g4 {[%emt 0:06:50]} 11. Ng1 {[%emt 0:05:34]} cxd4 {[%emt 0:01:05]} 12. exd4 {[%emt 0:00:44]} Nc6 {[%emt 0:02:17]} 13. Nge2 {[%emt 0:02:31]} Bf5 {[%emt 0:00:54]} 14. O-O-O {[%emt 0:11:33]} Qa5 {[%emt 0:06:34]} 15. Rh5 {[%emt 0:09:24]} Rc8 {[%emt 0:15:10]} 16. f3 {[%emt 0:17:04]} gxf3 {[%emt 0:27:41]} 17. gxf3 {[%emt 0:00:39]} Bf6 {[%emt 0:01:51]} 18. Nd5 {[%emt 0:15:30]} Qxd5 {[%emt 0:02:45]} 19. cxd5 {[%emt 0:04:17]} Nb4+ {[%emt 0:00:04]} 20. Qc3 {[%emt 0:00:39]} Nxa2+ {[%emt 0:00:07]} 21. Kd2 {[%emt 0:00:12]} Nxc3 {[%emt 0:00:09]} 22. bxc3 {[%emt 0:01:43]} Bg5+ {[%emt 0:03:23]} 23. f4 {[%emt 0:02:23]} Bg4 {[%emt 0:00:30]} 24. Bh3 {[%emt 0:02:33]} Bxh3 {[%emt 0:01:55]} 25. Rxh3 {[%emt 0:02:11]} Bf6 {[%emt 0:00:15]} 26. Rdh1 {[%emt 0:01:27]} Bg7 {[%emt 0:00:28]} 27. g4 {[%emt 0:01:26]} Rg8 {[%emt 0:01:04]} 28. Rg1 {[%emt 0:00:33]} Kd7 {[%emt 0:06:25]} 29. Ng3 {[%emt 0:00:49]} a5 {[%emt 0:00:00]} 30. Nf5 {[%emt 0:01:02]} e6 {[%emt 0:00:00]} 31. dxe6+ {[%emt 0:01:21]} fxe6 {[%emt 0:00:30]} 32. Nxg7 {[%emt 0:00:35]} Rxg7 {[%emt 0:00:00]} 33. Rxh6 {[%emt 0:00:20]} b5 {[%emt 0:00:00]} 34. g5 {[%emt 0:01:48]} Rf8 {[%emt 0:00:04]} 35. Rb1 {[%emt 0:01:16]} Rb8 {[%emt 0:00:12]} 36. Rh2 {[%emt 0:00:36]} Kc6 {[%emt 0:00:34]} 37. Ke3 {[%emt 0:00:10]} b4 {[%emt 0:00:00]} 38. cxb4 {[%emt 0:00:30]} Rxb4 {[%emt 0:00:00]} 39. Rhb2 {[%emt 0:01:26]} Kb5 {[%emt 0:00:30]} 40. Kd3 {[%emt 0:01:12]} e5 {[%emt 0:00:00]} 41. dxe5 {[%emt 0:01:06]} dxe5 {[%emt 0:00:00]} 42. fxe5 {[%emt 0:00:13]} Rxg5 {[%emt 0:00:00]} 43. Rxb4+ {[%emt 0:00:27]} axb4 {[%emt 0:00:00]} 44. Re1 {[%emt 0:00:04]} Rg8 {[%emt 0:00:30]} 45. e6 {[%emt 0:04:38]} Re8 {[%emt 0:00:02]} 46. Re4 {[%emt 0:00:00]} Kc5 {[%emt 0:00:16]} 47. Rc4+ Kd5 {[%emt 0:00:32]} 48. Rxb4 {[%emt 0:00:00]} Rxe6 {[%emt 0:00:00]} 1/2-1/2

[Event "Charlotte Open 2024"]
[Site "Charlotte"]
[Date "2024.01.14"]
[Round "2.10"]
[White "Zapata, Alonso"]
[Black "Joseph, Jonath"]
[Result "1/2-1/2"]
[ECO "C47"]
[WhiteElo "2313"]
[BlackElo "2149"]
[Annotator "RC"]
[PlyCount "59"]
[EventDate "2024.01.05"]
[EventType "swiss"]
[EventCountry "USA"]
[SourceTitle "playchess.com"]
[Source "ChessBase"]
[SourceQuality "1"]
[TimeControl "6600+10"]

1. e4 {[%emt 0:03:17]} e5 {[%emt 0:05:11]} 2. Nf3 {[%emt 0:00:13]} Nc6 {[%emt 0:00:21]} 3. d4 {[%emt 0:00:22]} exd4 {[%emt 0:00:05]} 4. Nxd4 {[%emt 0:00:07]} Nf6 {[%emt 0:00:09]} 5. Nc3 {[%emt 0:02:37]} Bb4 {[%emt 0:00:18]} 6. Nxc6 {[%emt 0:00:13]} bxc6 {[%emt 0:00:07]} 7. Bd3 {[%emt 0:00:22]} d5 {[%emt 0:00:22]} 8. exd5 {[%emt 0:00:13]} cxd5 {[%emt 0:01:04]} 9. O-O {[%emt 0:00:18]} O-O {[%emt 0:00:05]} 10. Bg5 {[%emt 0:00:20]} c6 {[%emt 0:00:31]} 11. Ne2 {[%emt 0:02:15]} Bd6 {[%emt 0:02:44]} 12. h3 {[%emt 0:01:40]} c5 {[%emt 0:04:28]} 13. c4 {[%emt 0:03:13]} d4 {[%emt 0:01:38]} 14. Ng3 {[%emt 0:01:25]} h6 {[%emt 0:04:25]} 15. Bxf6 {[%emt 0:14:16]} Qxf6 {[%emt 0:00:19]} 16. Qh5 {[%emt 0:00:53]} Qg5 {[%emt 0:15:14]} 17. Qxg5 {[%emt 0:15:14]} hxg5 {[%emt 0:00:01]} 18. Ne4 {[%emt 0:00:32]} Be7 {[%emt 0:00:06]} 19. Rae1 {[%emt 0:01:32]} g4 {[%emt 0:01:20]} 20. hxg4 {[%emt 0:06:08]} Bxg4 {[%emt 0:00:47]} 21. f4 {[%emt 0:01:18]} Bd7 {[%emt 0:05:49]} 22. Kf2 {[%emt 0:06:25]} Rab8 {[%emt 0:01:25]} 23. b3 {[%emt 0:00:13]} Bc6 {[%emt 0:00:48]} 24. Rh1 {[%emt 0:02:41]} g6 {[%emt 0:16:36]} 25. Nd2 {[%emt 0:16:33]} Bd6 {[%emt 0:01:38]} 26. Rh4 {[%emt 0:00:14]} Kg7 {[%emt 0:01:00]} 27. Be4 {[%emt 0:00:43]} Bd7 {[%emt 0:01:05]} 28. Reh1 {[%emt 0:04:08]} Rh8 {[%emt 0:00:56]} 29. Rxh8 {[%emt 0:01:11]} Rxh8 {[%emt 0:00:01]} 30. Rxh8 {[%emt 0:05:36]} 1/2-1/2

[Event "Charlotte Open 2024"]
[Site "Charlotte"]
[Date "2024.01.14"]
[Round "2.11"]
[White "Shundi, Matias"]
[Black "Horobetz, Graham"]
[Result "0-1"]
[ECO "B90"]
[WhiteElo "2226"]
[BlackElo "2249"]
[Annotator "RC"]
[PlyCount "160"]
[EventDate "2024.01.05"]
[EventType "swiss"]
[EventCountry "USA"]
[SourceTitle "playchess.com"]
[Source "ChessBase"]
[SourceQuality "1"]
[TimeControl "6600+10"]

1. e4 {[%emt 0:06:03]} c5 {[%emt 0:00:06]} 2. Nf3 {[%emt 0:00:09]} d6 {[%emt 0:00:03]} 3. d4 {[%emt 0:00:06]} cxd4 {[%emt 0:00:06]} 4. Nxd4 {[%emt 0:00:03]} Nf6 {[%emt 0:00:09]} 5. Nc3 {[%emt 0:00:04]} a6 {[%emt 0:00:10]} 6. Be3 {[%emt 0:00:06]} e5 {[%emt 0:00:18]} 7. Nb3 {[%emt 0:00:04]} Be7 {[%emt 0:00:06]} 8. f3 {[%emt 0:00:06]} Be6 {[%emt 0:00:05]} 9. Qd2 {[%emt 0:00:07]} h5 {[%emt 0:00:12]} 10. Be2 {[%emt 0:00:08]} Nbd7 {[%emt 0:00:25]} 11. Nd5 {[%emt 0:00:09]} Bxd5 {[%emt 0:00:16]} 12. exd5 {[%emt 0:00:07]} Qc7 {[%emt 0:00:50]} 13. Rc1 {[%emt 0:01:31]} a5 {[%emt 0:01:07]} 14. c4 {[%emt 0:00:18]} a4 {[%emt 0:01:30]} 15. Na1 {[%emt 0:00:12]} O-O {[%emt 0:00:30]} 16. Nc2 {[%emt 0:00:35]} Nh7 {[%emt 0:03:57]} 17. Na3 {[%emt 0:00:55]} Qd8 {[%emt 0:00:36]} 18. Nb5 {[%emt 0:00:30]} Nc5 {[%emt 0:00:29]} 19. O-O {[%emt 0:05:14]} Bg5 {[%emt 0:19:45]} 20. Rb1 {[%emt 0:09:14]} f5 {[%emt 0:07:16]} 21. Bxg5 {[%emt 0:15:51]} Nxg5 {[%emt 0:00:07]} 22. b4 {[%emt 0:01:00]} axb3 {[%emt 0:00:21]} 23. axb3 {[%emt 0:00:07]} f4 {[%emt 0:05:43]} 24. b4 {[%emt 0:01:17]} Nd7 {[%emt 0:01:09]} 25. Kh1 {[%emt 0:16:47]} Qf6 {[%emt 0:04:17]} 26. Rbc1 {[%emt 0:06:05]} Rfc8 {[%emt 0:06:54]} 27. Bd3 {[%emt 0:01:35]} Nf7 {[%emt 0:13:55]} 28. Qf2 {[%emt 0:01:02]} b6 {[%emt 0:03:52]} 29. Nc3 {[%emt 0:07:13]} Ra3 {[%emt 0:08:47]} 30. Ne4 {[%emt 0:09:43]} Qe7 {[%emt 0:00:30]} 31. Rfd1 {[%emt 0:00:32]} Kf8 {[%emt 0:02:54]} 32. c5 {[%emt 0:11:57]} bxc5 {[%emt 0:00:52]} 33. Bb5 {[%emt 0:00:49]} Nf6 {[%emt 0:10:33]} 34. Nxf6 {[%emt 0:04:58]} gxf6 {[%emt 0:04:45]} 35. Bd3 {[%emt 0:02:14]} c4 {[%emt 0:05:28]} 36. Rxc4 {[%emt 0:02:13]} Rxc4 {[%emt 0:00:05]} 37. Bxc4 {[%emt 0:00:04]} e4 {[%emt 0:01:55]} 38. fxe4 {[%emt 0:01:17]} Qxe4 {[%emt 0:00:09]} 39. Be2 {[%emt 0:02:38]} Qxb4 {[%emt 0:00:50]} 40. Bxh5 {[%emt 0:00:20]} Ne5 {[%emt 0:00:57]} 41. Qh4 {[%emt 0:02:11]} Kg7 {[%emt 0:00:35]} 42. h3 {[%emt 0:00:49]} Rb3 {[%emt 0:00:57]} 43. Kh2 {[%emt 0:00:29]} Rb2 {[%emt 0:01:15]} 44. Rf1 {[%emt 0:00:17]} Qd2 {[%emt 0:01:04]} 45. Rg1 {[%emt 0:00:07]} Qe3 {[%emt 0:00:51]} 46. Re1 {[%emt 0:00:19]} Qf2 {[%emt 0:00:28]} 47. Qxf2 {[%emt 0:00:08]} Rxf2 {[%emt 0:00:01]} 48. Kg1 {[%emt 0:00:07]} Rd2 {[%emt 0:01:00]} 49. Re4 {[%emt 0:00:14]} Kh6 {[%emt 0:00:00]} 50. Bf3 {[%emt 0:00:11]} Kg5 {[%emt 0:00:00]} 51. Ra4 {[%emt 0:00:08]} Kh4 {[%emt 0:00:00]} 52. Kf1 {[%emt 0:00:14]} Kg3 {[%emt 0:00:00]} 53. Ke1 {[%emt 0:00:03]} Nxf3+ {[%emt 0:00:00]} 54. gxf3 {[%emt 0:00:03]} Rxd5 {[%emt 0:00:07]} 55. Ra8 {[%emt 0:00:25]} Re5+ {[%emt 0:00:16]} 56. Kf1 {[%emt 0:00:04]} Kxf3 {[%emt 0:00:07]} 57. Ra6 {[%emt 0:00:12]} Rd5 {[%emt 0:00:24]} 58. Ra3+ {[%emt 0:00:09]} Ke4 {[%emt 0:00:02]} 59. Ke2 {[%emt 0:00:06]} f3+ {[%emt 0:00:24]} 60. Ke1 {[%emt 0:00:20]} Kf4 {[%emt 0:00:07]} 61. h4 {[%emt 0:00:07]} Kg3 {[%emt 0:00:06]} 62. Rb3 {[%emt 0:00:11]} Ra5 {[%emt 0:00:13]} 63. Rb1 {[%emt 0:00:12]} Kg2 {[%emt 0:00:12]} 64. Rb2+ {[%emt 0:00:04]} Kg1 {[%emt 0:00:04]} 65. h5 {[%emt 0:00:09]} f2+ {[%emt 0:00:07]} 66. Rxf2 {[%emt 0:00:02]} Ra1+ {[%emt 0:00:01]} 67. Ke2 {[%emt 0:00:02]} Ra2+ {[%emt 0:00:02]} 68. Ke3 {[%emt 0:00:02]} Rxf2 {[%emt 0:00:01]} 69. h6 {[%emt 0:00:01]} Rh2 {[%emt 0:00:02]} 70. Kf4 {[%emt 0:00:01]} Rxh6 {[%emt 0:00:02]} 71. Kf5 {[%emt 0:00:01]} d5 {[%emt 0:00:02]} 72. Kf4 {[%emt 0:00:02]} Rh5 {[%emt 0:00:07]} 73. Kg4 {[%emt 0:00:01]} Re5 {[%emt 0:00:02]} 74. Kf4 {[%emt 0:00:01]} d4 {[%emt 0:00:01]} 75. Kf3 {[%emt 0:00:02]} d3 {[%emt 0:00:01]} 76. Kg3 {[%emt 0:00:01]} d2 {[%emt 0:00:02]} 77. Kh3 {[%emt 0:00:01]} d1=Q {[%emt 0:00:03]} 78. Kh4 {[%emt 0:00:02]} Qh5+ {[%emt 0:00:04]} 79. Kg3 {[%emt 0:00:01]} Re3+ {[%emt 0:00:02]} 80. Kf4 {[%emt 0:00:01]} Qf3# {[%emt 0:00:14]} 0-1